Cogmind - Beta 10.2 @@@ ROGUE MODE // 2021.10.03 @ 18:36:49 Player: User Result: Destroyed by G-34 Mercenary with Small Laser Performance ------------- Evolutions (0) 0 Regions Visited (2) 400 Robots Destroyed (10) 50 Value Destroyed (285) 285 Prototype IDs (0) 0 Alien Tech Used (0) 0 Bonus (25) 25 TOTAL SCORE: 760 Bonus ------- Follower Combat Kills 25 Cogmind --------- Core Integrity 0/250 Matter 271/300 Energy 124/125 System Corruption 0% Temperature Cool (15) Movement Walking (120) Location -10/Mines Parts ------- > --- POWER (1) -------- Light Ion Engine > --- PROPULSION (2) --- Carbon-fiber Leg > --- UTILITY (2) ------ Small Storage Unit Core Shielding > --- WEAPON (2) ------- Assault Rifle Mining Claw > --- INVENTORY (6) ---- Targeting Computer Light Armor Plating Peak State ------------ > --- POWER ------------ Light Ion Engine > --- PROPULSION ------- Carbon-fiber Leg > --- UTILITY ---------- Small Storage Unit Core Shielding > --- WEAPON ----------- Small Laser Mining Claw > --- INVENTORY -------- Targeting Computer Core Shielding Light Armor Plating Assault Rifle [Rating: 8] Favorites ----------- Power Light Ion Engine Engine Light Ion Engine Propulsion Aluminum Leg Leg Aluminum Leg Utility Small Storage Unit Storage Small Storage Unit Protection Core Shielding Weapon Mining Claw Energy Gun Small Laser Ballistic Gun Light Assault Rifle Slashing Weapon Mining Claw Build | -11 -10 -10 ------- Run | Scr Mat Min Slots Evolved . | . . . Power . | . . . Propulsion . | . . . Utility . | . . . Weapon . | . . . Parts Attached 7 | . 2 5 Power 1 | . . 1 Engine 1 | . . 1 Core . | . . . Reactor . | . . . Propulsion 1 | . . 1 Treads . | . . . Leg 1 | . . 1 Wheel . | . . . Hover . | . . . Flight . | . . . Utility 2 | . 1 1 Device . | . . . Storage . | . . . Processor . | . . . Hackware . | . . . Protection 2 | . 1 1 Artifact . | . . . Weapon 3 | . 1 2 Energy Gun 1 | . . 1 Energy Cannon . | . . . Ballistic Gun 1 | . . 1 Ballistic Cannon . | . . . Launcher . | . . . Special Weapon . | . . . Impact Weapon . | . . . Slashing Weapon 1 | . 1 . Piercing Weapon . | . . . Special Melee Weapon . | . . . Unidentified Prototypes . | . . . Parts Lost 7 | . 1 6 Power 1 | . . 1 Propulsion 2 | . . 2 Utility 1 | . . 1 Weapon 3 | . 1 2 Highest Loss Streak 4 | . 1 4 Average Slot Usage (%) 85 | . 95 80 Engine 12 | . 14 12 Leg 18 | . 28 14 Storage 14 | . 14 14 Protection 12 | . 11 13 Energy Gun 7 | . 11 5 Ballistic Gun 8 | . 14 6 Slashing Weapon 9 | . . 14 Naked Turns . | . . . Heaviest Build 11 | 9 11 11 Greatest Support 20 | 20 20 20 Greatest Overweight (x) 3 | . . 3 Average Overweight (x) . | . . 1 Largest Inventory Capacity 6 | . 6 6 Average Capacity 6 | . 6 6 Most Carried 6 | . 6 6 Average Carried 4 | . 4 4 Final Capacity 6 | 6 6 6 Final Carried 6 | 6 4 2 Class Distribution -------------------- 100% | Mutant Dominant Class ---------------- Mutant | -10/Materials Mutant | -10/Mines Resources | -11 -10 -10 ----------- Run | Scr Mat Min Matter Collected 264 | 188 29 47 Remotely . | . . . Salvage Created 344 | . 136 208 Parts 22 | . 8 14 Haulers Intercepted . | . . . Recyclers Shooed . | . . . Parts Field Recycled . | . . . Retrieved Matter . | . . . Parts Self-Destructed . | . . . Prevented . | . . . Kills | -11 -10 -10 ------- Run | Scr Mat Min Combat Hostiles Destroyed 9 | . 3 6 Melee 4 | . . 4 Guns 5 | . 3 2 Classes Destroyed 4 | . 2 2 Watcher 1 | . 1 . Swarmer 3 | . . 3 Grunt 4 | . 3 1 Sentry 2 | . . 2 Best Kill Streak 4 | . 4 2 Combat Bots Only 3 | . 3 2 Max Kills in Single Turn 1 | . 1 1 Gunslinging . | . . . Exploded . | . . . Melee 1 | . . 1 Uniques/NPCs Destroyed . | . . . Combat | -11 -10 -10 -------- Run | Scr Mat Min Damage Taken 944 | . 143 801 Core 250 | . 27 223 Absorbed by Shields . | . . . Core Remaining (%) 100 | 100 . . Volleys Fired 38 | . 13 25 Largest 2 | . 2 1 Hottest 60 | . 60 40 Shots Fired 47 | . 22 25 Gun 47 | . 22 25 Cannon . | . . . Launcher . | . . . Special . | . . . Kinetic 34 | . 13 21 Thermal 13 | . 9 4 Explosive . | . . . Electromagnetic . | . . . Robot Hit Streak 16 | . 16 12 Robot Miss Streak 2 | . 2 1 Penetration Max . | . . . Secondary Targets 1 | . 1 . Max Gunslinging Chain 1 | . 1 . Shots Hit Robots 45 | . 18 27 Core Hits 20 | . 10 10 Critical Hits . | . . . Critical Kills . | . . . Critical Parts Destroyed . | . . . Melee Attacks 11 | . . 11 Impact . | . . . Slashing 11 | . . 11 Piercing . | . . . Sneak Attacks . | . . . Combat Hostiles . | . . . Follow-up Attacks . | . . . Damage Inflicted 517 | . 183 334 Guns 397 | . 183 214 Cannons . | . . . Explosions . | . . . Melee 120 | . . 120 Ramming . | . . . Kinetic 253 | . 83 170 Thermal 144 | . 100 44 Explosive . | . . . Electromagnetic . | . . . Impact . | . . . Slashing 120 | . . 120 Piercing . | . . . Highest Corruption . | . . . Average Corruption . | . . . Corruption Purged . | . . . Overload Shots . | . . . Overflow Damage . | . . . Projectiles . | . . . Explosions . | . . . Melee . | . . . Knockbacks . | . . . Impact . | . . . Kinetic . | . . . Secondary . | . . . Self-Inflicted Damage . | . . . Shots . | . . . Rammed . | . . . Targets Rammed . | . . . Kicked . | . . . Crushed . | . . . Highest Temperature 86 | . 86 63 Average Temperature 30 | . 35 23 Received Heat Transfer 321 | . 78 243 Siege Activations . | . . . Robots Corrupted . | . . . Combat Hostiles . | . . . Parts Fried . | . . . Impact Corruptions . | . . . Robots Melted . | . . . Combat Hostiles . | . . . Parts Melted . | . . . Heat Transferred 325 | . 225 100 Parts Sabotaged . | . . . Parts Stolen . | . . . Parts Stripped . | . . . Power Chain Reactions . | . . . Missiles Intercepted . | . . . Alert | -11 -10 -10 ------- Run | Scr Mat Min Peak Influence 141 | . 92 141 Initial 35 | . . 35 Average 63 | . 23 83 Maximum Alert Level . | . . . Low Security (%) 100 | . 100 100 Level 1 . | . . . Level 2 . | . . . Level 3 . | . . . Level 4 . | . . . Level 5 . | . . . High Security . | . . . Max Security . | . . . Squads Dispatched 3 | . 2 1 Investigation . | . . . Extermination . | . . . Reinforcement 2 | . 2 . Assault 1 | . . 1 Garrison . | . . . Intercept . | . . . Construction Impeded . | . . . Haulers Reinforced . | . . . Stealth | -11 -10 -10 --------- Run | Scr Mat Min Distress Signals 1 | . 1 . Communications Jammed . | . . . Distress Signals . | . . . Times Spotted 16 | . 7 9 Peak Tracking Total 4 | . 4 3 Tactical Retreats . | . . . Traps | -11 -10 -10 ------- Run | Scr Mat Min Traps Triggered . | . . . Indirectly . | . . . Trap Hack Attempts . | . . . Triggered . | . . . Disarmed . | . . . Reprogrammed . | . . . Reused . | . . . Traps Extracted . | . . . Installed . | . . . Triggered . | . . . Machines | -11 -10 -10 ---------- Run | Scr Mat Min Machines Disabled . | . . . Max in Single Turn . | . . . Machines Sabotaged . | . . . Garrisons Compromised . | . . . Overloaded Fab Kills . | . . . Fab Network Shutdowns . | . . . Hacking | -11 -10 -10 --------- Run | Scr Mat Min Machines Accessed . | . . . Terminals . | . . . Fabricators . | . . . Repair Stations . | . . . Recycling Units . | . . . Scanalyzers . | . . . Garrison Access . | . . . Total Hacks . | . . . Successful . | . . . Failed . | . . . Catastrophic . | . . . Database Lockouts . | . . . Manual . | . . . Terminals . | . . . Fabricators . | . . . Repair Stations . | . . . Recycling Units . | . . . Scanalyzers . | . . . Garrison Access . | . . . Terminal Hacks . | . . . Fabricator Hacks . | . . . Repair Station Hacks . | . . . Recycling Unit Hacks . | . . . Scanalyzer . | . . . Garrison Access Hacks . | . . . Unauthorized Hacks . | . . . Terminals . | . . . Fabricators . | . . . Repair Stations . | . . . Recycling Units . | . . . Scanalyzers . | . . . Garrison Access . | . . . Data Cores Recovered . | . . . Used . | . . . Hacking Detections . | . . . Full Trace Events . | . . . Feedback Events . | . . . Feedback Blocked . | . . . Robot Schematics Acquired . | . . . Robots Built . | . . . Matter . | . . . Time . | . . . Total Robot Build Rating . | . . . Part Schematics Acquired . | . . . Parts Built . | . . . Matter . | . . . Time . | . . . Total Part Build Rating . | . . . Parts Repaired . | . . . Time . | . . . Parts Recycled . | . . . Recycled Matter . | . . . Retrieved Matter . | . . . Retrieved Components . | . . . Parts Scanalyzed . | . . . Part Schematics Acquired . | . . . Parts Damaged . | . . . Bothacking | -11 -10 -10 ------------ Run | Scr Mat Min Used RIF Installer . | . . . Robots Hacked . | . . . Non-combat . | . . . Combat . | . . . Robot Hacks Applied . | . . . Relay Couplers Released . | . . . Robots Rewired . | . . . Allies Hacked . | . . . Hacks Repelled . | . . . Allies | -11 -10 -10 -------- Run | Scr Mat Min Total Allies 1 | . . 1 Largest Group 1 | . . 1 Highest-Rated Group 31 | . . 31 Highest-Rated Ally 31 | . . 31 Total Orders . | . . . Ally Attacks 3 | . . 3 Total Damage 65 | . . 65 Kills 1 | . . 1 Allies Corrupted . | . . . Allies Melted . | . . . Intel | -11 -10 -10 ------- Run | Scr Mat Min Robot Analysis Total . | . . . Derelict Logs Recovered . | . . . Drone Launches . | . . . Drone Recoveries . | . . . Exploration | -11 -10 -10 ------------- Run | Scr Mat Min Turns Passed 511 | . 167 344 Spaces Moved 269 | 1 97 171 Core 73 | . . 73 Treads . | . . . Legs 196 | 1 97 98 Wheels . | . . . Hover . | . . . Flight . | . . . Fastest Speed 120 | 120 120 120 Average Speed 139 | 120 120 150 Slowest Speed 200 | 120 120 200 Overloaded Moves . | . . . Propulsion Burnouts . | . . . Robots Hopped . | . . . Cave-ins Triggered . | . . . Exploration Rate (%) 25 | 2 32 43 Regions Visited 2 Branch Regions 1 Pre-discovered Areas . | . . . Known Exits Taken . | . . . Unknown Exits Taken 2 | 1 1 . Scrap Searched 1 | . . 1 Spaces Dug . | . . . Terrain Destroyed . | . . . Melee . | . . . Projectile . | . . . AOE . | . . . Terrain Rammed . | . . . Walls Destroyed . | . . . Machines Disabled . | . . . Actions | -11 -10 -10 --------- Run | Scr Mat Min Total 345 | . 130 215 Wait 11 | . 11 . Move 267 | . 96 171 Hop . | . . . Pick Up 7 | . 4 3 Fast Attach . | . . . Attach 7 | . 2 5 Detach . | . . . Swap . | . . . Drop 4 | . 4 . Fire 38 | . 13 25 Melee 11 | . . 11 Ram . | . . . Kick . | . . . Crush . | . . . Escape Stasis . | . . . Rewire . | . . . Trap . | . . . Miscellaneous . | . . . Route ------- -11/Scrapyard -10/Materials -10/Mines History --------- Turn | Location | Event 1 | -11/Scrapyard | Discovered new exit (range 0) 1 | -11/Scrapyard | Entered Materials 147 | -10/Materials | Discovered new exit (range 13) 168 | -10/Materials | Entered Mines 308 | -10/Mines | Build established: Mutant 331 | -10/Mines | Core integrity fell below 50% 353 | -10/Mines | Core integrity fell below 20% 368 | -10/Mines | Lost 4 parts (1p2n1w) 458 | -10/Mines | Met a Derelict testing a Signal Generator 512 | -10/Mines | Destroyed by G-34 Mercenary with Small Laser Last Messages --------------- get out of here!" 00484_ C-30 ARC bursts open, deploying its payload. 00484_ G-47 Trooper unfolds itself. 00484_ G-34 Mercenary unfolds itself. 00484_ M-13 Machinist unfolds itself. 00485_ G-34 Mercenary destroyed. 00491_ ZC-8MW(g) destroyed. 00495_ Acquired Carbon-fiber Leg. 00496_ Signal Generator broadcasts a burst of procedurally generated transmissions. 00496_ ALERT: Intercepting significant anomalous signal. Redirecting assault force. 00499_ Signal Generator broadcasts a burst of procedurally generated transmissions. 00499_ ALERT: Intercepting significant anomalous signal. Redirecting assault force. 00499_ Signal Generator's internal power supply exhausted. 00503_ G-34 Mercenary destroyed. 00504_ Sml. Laser destroyed. 00508_ Core Shielding destroyed. Map ----- +----------------------------------------------------+ | ?????????# #### ##???????????????# #?? | | ?????????# ### #???????????????# #?? | | ?????????# #???????????????# ??? | | ?????????# ##?????????????? ??? | | ?????????# ##????????????? ??? | | ????????## ##???????????? #??? | | ?????#### ##???????????#???? | | ?????# ########## #????? | | ????# ???? | | ????# ####### #????? | | ????###??????## ######????????? | | ??????????????# ## #?????????????? | | ?????????????## ##??#?????????????? | | ?????????????# #???#?????????????? | | ?????????????# #### #######???????? | | ?????????????# *=[ #???????? | | ?????????????## =%% #???????? | | ??????????????# ! #### #### #?????? | | ?????????###?## gm #?????????????????? | | ????????## ## ##?????????????????? | | ????????# ##??????????????????? | | ????????# g ##???????????????????? | | ????????## ! #????????????????????? | | ?????????#####=%##????????????????????? | | ???????##????#%=#??##?????????????????? | | ??????## ???#@ ## #?????????????????? | | ?????## ### #?????????????????? | | ?????# #?????????????????? | | ?????# ##?????????????????? | | ?????## ## ##??????????????????? | | ??????####??#######???????????????????? | | ??????????????????????????????????????? | | | | | | | | | | | | | | | | | | | | | | | | | | | | | | | | | | | | | +----------------------------------------------------+ Best States ------------- Heat Dissipation 25 Energy Generation 10 Energy Capacity 125 Matter Stores 300 Matter Capacity 300 Sight Range 16 Terrain Scan Density 10 Core Shielding 20 Evasion (%) 40 Item Schematics ----------------- None Robot Schematics ------------------ None Fabricated ------------ Nothing Alien Tech Used ----------------- None Achievements -------------- None Challenges ------------ None Game ------ Seed ActuatorArmorRifle Manual? 0 Play Time 00:06:48 Cumulative 30.9 hours Start 2021.10.03 @ 18:32:31 End 2021.10.03 @ 18:36:49 Sessions 1 Manual Loads 0 Difficulty Rogue Special Mode None Game No. 60 Rogue 60 Adventurer 0 Explorer 0 Win Type - Total 0 Types 0/0/0/0/0/0/0/0/0 Lore% 30 Gallery% 36 Achievement% 24 Wizard Run 0 Options --------- ASCII 0 Keyboard 0 Movement Mouse Keybinds 0 Fullscreen 2 Font 20/Terminus Map View 66x50 Tactical HUD 1 Map Filters NONE Filters NONE Steam 1 RUN: 242daa84-a981-4767-b0aa-d92755a3657d